Cogmind - Beta 15 @@@ ROGUE MODE // 2025.07.30 @ 20:46:50 Player: Crap Result: Destroyed by Y-45 Defender with Heavy Assault Rifle Performance ------------- Evolutions (1) 500 Regions Visited (2) 400 Robots Destroyed (18) 90 Value Destroyed (491) 491 Prototype IDs (0) 0 Alien Tech Used (0) 0 Bonus (0) 0 TOTAL SCORE: 1481 Bonus ------- None Cogmind --------- Core Integrity 0/400 Matter 210/300 Energy 97/100 System Corruption 0% Temperature Cool (28) Movement Core (50) Location -9/Materials Parts ------- > --- POWER (2) -------- (None) > --- PROPULSION (2) --- (None) > --- UTILITY (3) ------ Targeting Computer Improved Targeting Computer > --- WEAPON (2) ------- Heavy Assault Rifle > --- INVENTORY (5) ---- (None) Peak State ------------ > --- POWER ------------ (None) > --- PROPULSION ------- Improved Aluminum Leg Improved Aluminum Leg > --- UTILITY ---------- Small Storage Unit Light Armor Plating > --- WEAPON ----------- EM Shotgun EM Shotgun > --- INVENTORY -------- Ion Engine Light Armor Plating [Rating: 10] Favorites ----------- Power Light Ion Engine Engine Light Ion Engine Propulsion Light Treads Treads Light Treads Leg Improved Aluminum Leg Wheel Wheel Utility Small Storage Unit Device Heat Sink Storage Small Storage Unit Processor Targeting Computer Protection Light Armor Plating Weapon Medium Laser Energy Gun Medium Laser Ballistic Gun Assault Rifle Launcher Grenade Launcher Special Melee Weapon Datajack Build | -11 -10 -9 ------- Run | Yrd Mat Mat Slots Evolved 2 | . . 2 Power 1 | . . 1 Propulsion . | . . . Utility 1 | . . 1 Weapon . | . . . Parts Attached 25 | 6 14 5 Power 2 | 1 . 1 Engine 2 | 1 . 1 Core . | . . . Reactor . | . . . Propulsion 6 | 2 4 . Treads 2 | 2 . . Leg 2 | . 2 . Wheel 2 | . 2 . Hover . | . . . Flight . | . . . Utility 5 | 1 3 1 Device 1 | . 1 . Storage 1 | 1 . . Processor 2 | . 1 1 Hackware . | . . . Protection 1 | . 1 . Artifact . | . . . Weapon 12 | 2 7 3 Energy Gun 5 | 2 3 . Energy Cannon . | . . . Ballistic Gun 5 | . 2 3 Ballistic Cannon . | . . . Launcher 1 | . 1 . Special Weapon . | . . . Impact Weapon . | . . . Slashing Weapon . | . . . Piercing Weapon . | . . . Special Melee Weapon 1 | . 1 . Unidentified Prototypes . | . . . Parts Lost 12 | . 4 8 Power 2 | . 1 1 Propulsion 2 | . . 2 Utility 1 | . . 1 Weapon 7 | . 3 4 Highest Loss Streak 8 | . 2 8 To Critical Strikes . | . . . Average Backups 1 | . 1 . Power . | . 1 . Propulsion . | . . . Utility . | . . . Weapon . | . . . Tool/Special . | . . . Unused Backups 3 | 1 2 . Power . | . . . Propulsion 1 | 1 . . Utility 2 | . 2 . Weapon . | . . . Tool/Special . | . . . Average Slot Usage (%) 87 | . 91 56 Engine 9 | . 10 1 Treads 15 | . 17 . Leg 6 | . 5 17 Wheel 4 | . 4 . Device 6 | . 7 . Storage 11 | . 13 . Processor 2 | . . 13 Protection 4 | . 4 7 Energy Gun 19 | . 20 13 Ballistic Gun 3 | . 4 2 Launcher 1 | . 1 . Peak Build Rating 10 | 6 10 10 Average Rating 7 | 4 7 8 On Entrance 5 | . 6 10 Naked Turns . | . . . Heaviest Build 15 | 12 15 11 Greatest Support 40 | 40 40 26 Greatest Overweight (x) 3 | . 1 3 Average Overweight (x) . | . . . Largest Inventory Capacity 8 | 8 8 5 Average Capacity 7 | 7 7 5 Most Carried 3 | 3 3 1 Average Carried 1 | 1 1 . Final Capacity 8 | 8 5 5 Final Carried 1 | 1 1 . Class Distribution -------------------- 100% | Mutant Dominant Class ---------------- Mutant | -10/Materials Mutant | -9/Materials Resources | -11 -10 -9 ----------- Run | Yrd Mat Mat Matter Collected 461 | 256 205 . Remotely . | . . . Salvage Created 586 | . 553 33 Parts 36 | . 35 1 Haulers Intercepted . | . . . Recyclers Shooed . | . . . Parts Field Recycled . | . . . Retrieved Matter . | . . . Parts Self-Destructed . | . . . Prevented . | . . . Kills | -11 -10 -9 ------- Run | Yrd Mat Mat Combat Hostiles Destroyed 18 | . 17 1 Guns 16 | . 15 1 AOE 2 | . 2 . Classes Destroyed 2 | . 2 . Swarmer 6 | . 6 . Grunt 12 | . 11 1 Best Kill Streak 5 | . 5 1 Combat Bots Only 5 | . 5 1 Max Kills in Single Turn 1 | . 1 1 Gunslinging . | . . . Exploded 1 | . 1 . Melee . | . . . Uniques/NPCs Destroyed . | . . . Combat | -11 -10 -9 -------- Run | Yrd Mat Mat Hostile Shots Fired 217 | . 90 127 Missed 65 | . 21 44 Hits 152 | . 69 83 Melee 6 | . . 6 Projectile 146 | . 69 77 Critical Strikes 1 | . . 1 Damage Taken 1833 | . 765 1068 Core 564 | . 159 405 Absorbed by Shields . | . . . Regen/Repaired (Parts) 54 | . 54 . Core Remaining (%) 68 | 100 36 . Volleys Fired 67 | . 54 13 Largest 2 | . 2 2 Hottest 90 | . 90 90 Shots Fired 116 | . 93 23 Gun 112 | . 89 23 Cannon . | . . . Launcher 4 | . 4 . Special . | . . . Kinetic 25 | . 16 9 Thermal 32 | . 32 . Explosive 4 | . 4 . Electromagnetic 55 | . 41 14 Robot Hit Streak 10 | . 10 8 Robot Miss Streak 4 | . 4 3 Penetration Max . | . . . Secondary Targets 4 | . 3 1 Max Gunslinging Chain 1 | . 1 1 Shots Hit Robots 73 | . 54 19 Core Hits 35 | . 28 7 Critical Kills . | . . . Critical Parts Destroyed . | . . . Critical Strikes 3 | . 3 . Burn 3 | . 3 . Melee Attacks 2 | . 2 . Impact . | . . . Slashing . | . . . Piercing . | . . . Sneak Attacks 1 | . 1 . Combat Hostiles . | . . . Follow-up Attacks . | . . . Damage Inflicted 1154 | . 842 312 Guns 958 | . 647 311 Cannons . | . . . Explosions 195 | . 195 . Melee . | . . . Ramming 1 | . . 1 Kinetic 277 | . 148 129 Thermal 197 | . 197 . Explosive 195 | . 195 . Electromagnetic 484 | . 302 182 Impact . | . . . Slashing . | . . . Piercing . | . . . Highest Corruption 1 | . 1 . Average Corruption 1 | . 1 . Corruption Purged . | . . . Corruption Blocked . | . . . Effects 8 | . 8 . Matter Fused 4 | . 4 . Heat Flow Errors 3 | . 3 . Energy Discharges 1 | . 1 . Overload Shots . | . . . Overflow Damage 5 | . 5 . Projectiles . | . . . Explosions 5 | . 5 . Melee . | . . . Knockbacks . | . . . Impact . | . . . Kinetic . | . . . Secondary . | . . . Self-Inflicted Damage 20 | . 20 . Shots 1 | . 1 . Rammed 1 | . 1 . Targets Rammed 2 | . 1 1 Kicked 1 | . . 1 Crushed . | . . . Highest Temperature 251 | . 251 45 Average Temperature 79 | . 95 14 Received Heat Transfer 819 | . 324 495 Effects 1 | . 1 . Energy Bleed 1 | . 1 . Siege Activations . | . . . Martial Activations . | . . . Shielding Activations . | . . . Robots Disrupted . | . . . Combat Hostiles . | . . . Robots Corrupted . | . . . Combat Hostiles . | . . . Parts Fried . | . . . Impact Corruptions . | . . . Robots Melted . | . . . Combat Hostiles . | . . . Parts Melted . | . . . Heat Transferred 814 | . 814 . Parts Sabotaged . | . . . Parts Stolen . | . . . Parts Stripped . | . . . Power Chain Reactions . | . . . Alert | -11 -10 -9 ------- Run | Yrd Mat Mat Maximum Alert Level . | . . . Low Security (%) 100 | 100 100 100 Level 1 . | . . . Level 2 . | . . . Level 3 . | . . . Level 4 . | . . . Level 5 . | . . . High Security . | . . . Max Security . | . . . Peak Influence 105 | . 105 20 Initial 14 | . . 14 Average 28 | . 36 4 Influence Increases 511 | . 446 65 Destroy 0b10 Robot/C 360 | . 340 20 Destroy Leader 60 | . 60 . Successful Hack 1 | . 1 . Disable Machine 15 | . 15 . Destroy Structure 15 | . 15 . Lose Combat Pursuer 60 | . 15 45 Influence Decreases 511 | . 410 101 Entered New Map 22 | . . 22 Time Decay 417 | . 378 39 Lost Part 72 | . 32 40 Squads Dispatched 6 | . 4 2 Investigation 4 | . 3 1 Extermination . | . . . Reinforcement 2 | . 1 1 Assault . | . . . Garrison . | . . . Intercept . | . . . Searches Triggered . | . . . Construction Impeded . | . . . Haulers Reinforced . | . . . Active Scanning Responses . | . . . Cargo Convoy Interrupts . | . . . Stealth | -11 -10 -9 --------- Run | Yrd Mat Mat Distress Signals 2 | . . 2 Communications Jammed . | . . . Distress Signals . | . . . Times Spotted 38 | . 26 12 Peak Tracking Total 7 | . 4 7 Tactical Retreats 2 | . 1 1 Traps | -11 -10 -9 ------- Run | Yrd Mat Mat Traps Triggered 3 | . 2 1 Indirectly . | . . . Trap Hack Attempts . | . . . Triggered . | . . . Disarmed . | . . . Reprogrammed . | . . . Reused . | . . . Traps Extracted . | . . . Installed . | . . . Triggered . | . . . Machines | -11 -10 -9 ---------- Run | Yrd Mat Mat Machines Disabled 1 | . 1 . Max in Single Turn 1 | . 1 . Machines Repaired . | . . . Machines Dismantled . | . . . Machines Sabotaged . | . . . Overloaded Fab Kills . | . . . Hacking | -11 -10 -9 --------- Run | Yrd Mat Mat Machines Accessed 4 | . 4 . Terminals 1 | . 1 . Fabricators . | . . . Repair Stations 1 | . 1 . Recycling Units 2 | . 2 . Scanalyzers . | . . . Garrison Access . | . . . Total Hacks 16 | . 16 . Successful 8 | . 8 . Failed 8 | . 8 . Catastrophic . | . . . Database Lockouts . | . . . Manual . | . . . Terminals 3 | . 3 . Fabricators . | . . . Repair Stations 4 | . 4 . Recycling Units 9 | . 9 . Scanalyzers . | . . . Garrison Access . | . . . Terminal Hacks 2 | . 2 . Record 2 | . 2 . Fabricator Hacks . | . . . Repair Station Hacks 2 | . 2 . Scan Component 1 | . 1 . Repair 1 | . 1 . Recycling Unit Hacks 4 | . 4 . Recycle Component 2 | . 2 . Process 1 | . 1 . Report Inventory 1 | . 1 . Scanalyzer . | . . . Garrison Access Hacks . | . . . Unauthorized Hacks . | . . . Terminals . | . . . Fabricators . | . . . Repair Stations . | . . . Recycling Units . | . . . Scanalyzers . | . . . Garrison Access . | . . . Data Cores Recovered . | . . . Used . | . . . Hacking Detections 3 | . 3 . Full Trace Events 3 | . 3 . Feedback Events . | . . . Feedback Blocked . | . . . Robot Schematics Acquired . | . . . Robots Built . | . . . Authchips . | . . . Time . | . . . Total Robot Build Rating . | . . . Part Schematics Acquired . | . . . Parts Built . | . . . Authchips . | . . . Time . | . . . Total Part Build Rating . | . . . Parts Repaired 1 | . 1 . Time 26 | . 26 . Parts Recycled 2 | . 2 . Recycled Matter 142 | . 142 . Retrieved Matter . | . . . Retrieved Components . | . . . Parts Scanalyzed . | . . . Part Schematics Acquired . | . . . Parts Damaged . | . . . Bothacking | -11 -10 -9 ------------ Run | Yrd Mat Mat Used RIF Installer . | . . . Robots Hacked 2 | . 2 . Non-combat 1 | . 1 . Combat 1 | . 1 . Robot Hacks Applied 2 | . 2 . parse_system 2 | . 2 . Relay Couplers Released . | . . . Fabnet Peak Effective % . | . . . Robots Rewired . | . . . Allies Hacked . | . . . Hacks Repelled . | . . . Allies | -11 -10 -9 -------- Run | Yrd Mat Mat Total Allies . | . . . Largest Group . | . . . Highest-Rated Group . | . . . Highest-Rated Ally . | . . . Total Orders . | . . . Ally Attacks . | . . . Total Damage . | . . . Kills . | . . . Allies Corrupted . | . . . Allies Melted . | . . . Intel | -11 -10 -9 ------- Run | Yrd Mat Mat Active Infowar (turns) . | . . . Robot Analysis Total . | . . . Derelict Logs Recovered . | . . . Drone Launches . | . . . Drone Recoveries . | . . . Exploration | -11 -10 -9 ------------- Run | Yrd Mat Mat Turns Passed 1562 | 194 1220 148 Spaces Moved 859 | 105 668 86 Core 30 | 25 . 5 Treads 451 | 80 371 . Legs 209 | . 128 81 Wheels 169 | . 169 . Hover . | . . . Flight . | . . . Fastest Speed 50 | 50 80 50 Average Speed 131 | 133 132 119 Slowest Speed 200 | 160 160 200 Overloaded Moves . | . . . Propulsion Burnouts . | . . . Robots Hopped . | . . . Potential Cave-ins . | . . . Cave-ins Triggered . | . . . Exploration Rate (%) 26 | 6 63 9 Regions Visited 2 Branch Regions . Pre-discovered Areas . | . . . Known Exits Taken . | . . . Unknown Exits Taken 2 | 1 1 . Scrap Searched . | . . . Spaces Dug . | . . . Terrain Destroyed 12 | . 12 . Melee . | . . . Projectile . | . . . AOE 12 | . 12 . Terrain Rammed . | . . . Walls Destroyed . | . . . Machines Disabled . | . . . Actions | -11 -10 -9 --------- Run | Yrd Mat Mat Total 1166 | 157 903 106 Wait 205 | 42 162 1 Move 857 | 104 667 86 Hop . | . . . Pick Up 6 | 4 2 . Fast Attach 13 | 4 5 4 Attach 3 | 2 . 1 Detach . | . . . Swap 10 | . 10 . Drop 1 | 1 . . Fire 67 | . 54 13 Melee 2 | . 2 . Ram . | . . . Kick 1 | . . 1 Crush 1 | . 1 . Escape Stasis . | . . . Rewire . | . . . Trap . | . . . Miscellaneous . | . . . Route ------- -11/Scrapyard -10/Materials (discovered 3 exits: [*Mat] / [*Min] / [*Sub]) -9/Materials History --------- Turn | Location | Event 10 | -11/Scrapyard | Discovered new exit (range 16) 195 | -11/Scrapyard | Entered Materials 310 | -10/Materials | Build established: Mutant 701 | -10/Materials | Discovered new exit (range 9) 713 | -10/Materials | Discovered new exit (range 10) 1073 | -10/Materials | Repaired Lgt. Armor Plating 1364 | -10/Materials | Discovered new exit (range 16) 1368 | -10/Materials | Core integrity fell below 50% 1415 | -10/Materials | Entered another Materials area 1415 | -9/Materials | Evolved 2 slots: Power x1, Utility x1 1540 | -9/Materials | Core integrity fell below 50% 1556 | -9/Materials | Core integrity fell below 20% 1563 | -9/Materials | Destroyed by Y-45 Defender with Heavy Assault Rifle Last Messages --------------- EM Shotgun destroyed. Lgt. Armor Plating destroyed. G-34 Mercenary misfires. Imp. Aluminum Leg destroyed. Acquired Imp. Targeting Computer. G-34 Mercenary misfires. Triggered Alarm Trap. An alarm sounds. ALERT: Alarm triggered, dispatching investigation squad. Acquired Hvy. Assault Rifle. Imp. Aluminum Leg destroyed. U-05 Engineer lays Concrete. Acquired Hvy. Assault Rifle. U-05 Engineer lays Concrete. G-34 Mercenary destroyed. Switching to secondary target: L-31 Rogue. Hvy. Assault Rifle destroyed. Ion Engine destroyed. Acquired Hvy. Assault Rifle. Critical hit (Burn: +37). Map ----- +----------------------------------------------------+ | ?????????????????????????????????????????????????? | | ?????????????????????????????????????????????????? | | ?????????????????????????????????????????????????? | | ?????????????????????????????????????????????????? | | ?????????????????????????????????????????????????? | | ?????????????????????????????????????????????????? | | ??????????#####??????????????????????????????????? | | ??????????# #??????????????????????????????????? | | ??????????# #??????????????????????????????????? | | ??????????# #??????????????????????????????????? | | ?########## #??????????????????????????????????? | | ?# # #??????????????????????????????????? | | ?# """ # #??????????????????????????????????? | | ?# """ # #??????????????????????????????????? | | ?# """ # ###############????????????????????? | | ?# # #????????????????????? | | ?# """ # =% #????????????????????? | | ?# """ / "T" g ####?????????????????? | | ?# """ # g #?????????????????? | | ?# # o ug +?????????????????? | | ?########## g #?????????????????? | | ?????????# """ ! #?????????????????? | | ????? """ g ! ####### ?????????? | | ?? """ ! ????????? | | ??? u l Y ????????? | | ??### = @ ????????? | | ????# ######+##### ########## ## ????????? | | ????# ???? ????# #????????? #???#????????? | | ????#??? ""?????# +?????????? #????????????? | | ???????? "???????# ###??????????? #????????????? | | ???????#?????????# #????????????? ????????????? | | ?????????????????# #??????????????##???????????? | | ?????????????????# #???????????????????????????? | | ?????????????????# #???????????????????????????? | | ?????????????????# #???????????????????????????? | | ?????????????????? #???????????????????????????? | | ?????????????????? #???????????????????????????? | | ?????????????????? #???????????????????????????? | | ?????????????????? ????????????????????????????? | | ?????????????????????????????????????????????????? | | ?????????????????????????????????????????????????? | | ?????????????????????????????????????????????????? | | ?????????????????????????????????????????????????? | | ?????????????????????????????????????????????????? | | ?????????????????????????????????????????????????? | | ?????????????????????????????????????????????????? | | ?????????????????????????????????????????????????? | | ?????????????????????????????????????????????????? | | ?????????????????????????????????????????????????? | | ?????????????????????????????????????????????????? | +----------------------------------------------------+ Best States ------------- Heat Dissipation 35 Energy Generation 10 Energy Capacity 250 Matter Stores 300 Matter Capacity 300 Sight Range 16 Terrain Scan Density 10 Armor Coverage 150 Evasion (%) 55 Targeting Accuracy 11 Recoil Reduction 2 Item Schematics ----------------- None Robot Schematics ------------------ None Fabricated ------------ Nothing Repaired ---------- Lgt. Armor Plating | 40% | -10/Materials Alien Tech Used ----------------- None Achievements -------------- None Challenges ------------ None Game ------ Seed HardenedHardcellStatue Manual? 0 Play Time 00:22:51 Cumulative 5.5 hours Start 2025.07.30 @ 20:14:48 End 2025.07.30 @ 20:46:50 Sessions 1 Manual Loads 0 Difficulty Rogue Special Mode None Game No. 10 Rogue 10 Adventurer 0 Explorer 0 Win Type - Total 0 Types 0/0/0/0/0/0/0/0/0/0 Lore% 0 Gallery% 10 Achievement% 8 Wizard Run 0 Options --------- Layout 0 ASCII 0 Keyboard 1 Movement Numpad Keybinds 0 Fullscreen 1 Font 24/Smallcaps Map View 76x50 Zoom Use 0% Tactical HUD 0 Map Filters NONE Filters NONE Steam 1 RUN: 3a796f1e-89fb-4a61-af72-c0c783e6a71f